Cogmind - Beta 11.1 @@@ ROGUE MODE // 2022.05.12 @ 18:48:43 Player: Olga Result: Self-destructed Performance ------------- Evolutions (1) 500 Regions Visited (3) 600 Robots Destroyed (7) 35 Value Destroyed (70) 70 Prototype IDs (0) 0 Alien Tech Used (0) 0 Bonus (200) 200 TOTAL SCORE: 1405 Bonus ------- Pacifist 200 Cogmind --------- Core Integrity 216/400 Matter 258/300 Energy 124/125 System Corruption 0% Temperature Cool (0) Movement Core (50) Location -9/Materials Parts ------- > --- POWER (1) -------- Light Ion Engine > --- PROPULSION (4) --- (None) > --- UTILITY (2) ------ Weight Redist. System > --- WEAPON (2) ------- (None) > --- INVENTORY (5) ---- Signal Interpreter Light Armor Plating Hammer Peak State ------------ > --- POWER ------------ Light Ion Engine > --- PROPULSION ------- Flight Unit > --- UTILITY ---------- Weight Redist. System > --- WEAPON ----------- Rocket Launcher > --- INVENTORY -------- Signal Interpreter Light Armor Plating Hammer [Rating: 6] Favorites ----------- Power Light Ion Engine Engine Light Ion Engine Propulsion Flight Unit Flight Unit Flight Unit Utility Weight Redist. System Device Weight Redist. System Weapon Rocket Launcher Launcher Rocket Launcher Build | -11 -10 -10 -9 ------- Run | Scr Mat Min Mat Slots Evolved 2 | . . . 2 Power . | . . . . Propulsion 2 | . . . 2 Utility . | . . . . Weapon . | . . . . Parts Attached 4 | . . . 4 Power 1 | . . . 1 Engine 1 | . . . 1 Core . | . . . . Reactor . | . . . . Propulsion 1 | . . . 1 Treads . | . . . . Leg . | . . . . Wheel . | . . . . Hover . | . . . . Flight 1 | . . . 1 Utility 1 | . . . 1 Device 1 | . . . 1 Storage . | . . . . Processor . | . . . . Hackware . | . . . . Protection . | . . . . Artifact . | . . . . Weapon 1 | . . . 1 Energy Gun . | . . . . Energy Cannon . | . . . . Ballistic Gun . | . . . . Ballistic Cannon . | . . . . Launcher 1 | . . . 1 Special Weapon . | . . . . Impact Weapon . | . . . . Slashing Weapon . | . . . . Piercing Weapon . | . . . . Special Melee Weapon . | . . . . Unidentified Prototypes . | . . . . Parts Lost 2 | . . . 2 Power . | . . . . Propulsion 1 | . . . 1 Utility . | . . . . Weapon 1 | . . . 1 Highest Loss Streak 2 | . . . 2 To Critical Strikes . | . . . . Average Slot Usage (%) 11 | . . . 17 Engine 1 | . . . 2 Device 5 | . . . 8 Launcher 3 | . . . 4 Naked Turns 69 | . 48 6 15 Heaviest Build 7 | . . . 7 Greatest Support 10 | 3 3 3 10 Greatest Overweight (x) 1 | . . . 1 Average Overweight (x) . | . . . . Largest Inventory Capacity 5 | 5 5 5 5 Average Capacity 5 | 5 5 5 5 Most Carried 4 | 4 1 1 4 Average Carried 1 | 2 . 1 2 Final Capacity 5 | 5 5 5 5 Final Carried 3 | . 1 1 3 Class Distribution -------------------- 100% | Mutant Dominant Class ---------------- Mutant | -10/Materials Mutant | -10/Mines Mutant | -9/Materials Resources | -11 -10 -10 -9 ----------- Run | Scr Mat Min Mat Matter Collected 276 | 200 . . 76 Remotely . | . . . . Salvage Created 29 | . . . 29 Parts 8 | . . . 8 Haulers Intercepted . | . . . . Recyclers Shooed . | . . . . Parts Field Recycled . | . . . . Retrieved Matter . | . . . . Parts Self-Destructed . | . . . . Prevented . | . . . . Kills | -11 -10 -10 -9 ------- Run | Scr Mat Min Mat Combat Hostiles Destroyed 7 | . . . 7 AOE 7 | . . . 7 Classes Destroyed 1 | . . . 1 Swarmer 7 | . . . 7 Best Kill Streak 7 | . . . 7 Combat Bots Only 7 | . . . 7 Max Kills in Single Turn 2 | . . . 2 Gunslinging . | . . . . Exploded 2 | . . . 2 Melee . | . . . . Uniques/NPCs Destroyed . | . . . . Combat | -11 -10 -10 -9 -------- Run | Scr Mat Min Mat Damage Taken 328 | . 28 . 300 Core 212 | . 28 . 184 Absorbed by Shields . | . . . . Core Remaining (%) 94 | 100 . 88 . Volleys Fired 8 | . . . 8 Largest 1 | . . . 1 Hottest 33 | . . . 33 Shots Fired 8 | . . . 8 Gun . | . . . . Cannon . | . . . . Launcher 8 | . . . 8 Special . | . . . . Kinetic . | . . . . Thermal . | . . . . Explosive 8 | . . . 8 Electromagnetic . | . . . . Robot Hit Streak 2 | . . . 2 Robot Miss Streak 4 | . . . 4 Penetration Max . | . . . . Secondary Targets . | . . . . Shots Hit Robots 3 | . . . 3 Core Hits 9 | . . . 9 Critical Kills . | . . . . Critical Parts Destroyed . | . . . . Critical Strikes . | . . . . Melee Attacks . | . . . . Impact . | . . . . Slashing . | . . . . Piercing . | . . . . Sneak Attacks . | . . . . Combat Hostiles . | . . . . Follow-up Attacks . | . . . . Damage Inflicted 549 | . . . 549 Guns . | . . . . Cannons . | . . . . Explosions 549 | . . . 549 Melee . | . . . . Ramming . | . . . . Kinetic . | . . . . Thermal . | . . . . Explosive 549 | . . . 549 Electromagnetic . | . . . . Impact . | . . . . Slashing . | . . . . Piercing . | . . . . Highest Corruption . | . . . . Average Corruption . | . . . . Corruption Purged . | . . . . Corruption Blocked . | . . . . Overload Shots . | . . . . Overflow Damage 8 | . . . 8 Projectiles . | . . . . Explosions 8 | . . . 8 Melee . | . . . . Knockbacks . | . . . . Impact . | . . . . Kinetic . | . . . . Secondary . | . . . . Self-Inflicted Damage 167 | . . . 167 Shots 4 | . . . 4 Rammed . | . . . . Targets Rammed . | . . . . Kicked . | . . . . Crushed . | . . . . Highest Temperature . | . . . . Average Temperature . | . . . . Received Heat Transfer 30 | . . . 30 Siege Activations . | . . . . Robots Corrupted . | . . . . Combat Hostiles . | . . . . Parts Fried . | . . . . Impact Corruptions . | . . . . Robots Melted . | . . . . Combat Hostiles . | . . . . Parts Melted . | . . . . Heat Transferred . | . . . . Parts Sabotaged . | . . . . Parts Stolen . | . . . . Parts Stripped . | . . . . Power Chain Reactions . | . . . . Missiles Intercepted . | . . . . Alert | -11 -10 -10 -9 ------- Run | Scr Mat Min Mat Peak Influence 357 | . 86 33 357 Initial 33 | . . 33 12 Average 107 | . 48 33 147 Maximum Alert Level 1 | . . . 1 Low Security (%) 73 | 100 100 100 57 Level 1 26 | . . . 42 Level 2 . | . . . . Level 3 . | . . . . Level 4 . | . . . . Level 5 . | . . . . High Security . | . . . . Max Security . | . . . . Squads Dispatched 1 | . . . 1 Investigation . | . . . . Extermination . | . . . . Reinforcement 1 | . . . 1 Assault . | . . . . Garrison . | . . . . Intercept . | . . . . Searches Triggered . | . . . . Construction Impeded . | . . . . Haulers Reinforced . | . . . . Active Scanning Responses . | . . . . Cargo Convoy Interrupts . | . . . . Stealth | -11 -10 -10 -9 --------- Run | Scr Mat Min Mat Distress Signals . | . . . . Communications Jammed . | . . . . Distress Signals . | . . . . Times Spotted 17 | . 6 . 11 Peak Tracking Total 8 | . 7 . 8 Tactical Retreats 1 | . . . 1 Traps | -11 -10 -10 -9 ------- Run | Scr Mat Min Mat Traps Triggered . | . . . . Indirectly . | . . . . Trap Hack Attempts . | . . . . Triggered . | . . . . Disarmed . | . . . . Reprogrammed . | . . . . Reused . | . . . . Traps Extracted . | . . . . Installed . | . . . . Triggered . | . . . . Machines | -11 -10 -10 -9 ---------- Run | Scr Mat Min Mat Machines Disabled . | . . . . Max in Single Turn . | . . . . Machines Sabotaged . | . . . . Garrisons Compromised . | . . . . Overloaded Fab Kills . | . . . . Hacking | -11 -10 -10 -9 --------- Run | Scr Mat Min Mat Machines Accessed 3 | . 2 . 1 Terminals 3 | . 2 . 1 Fabricators . | . . . . Repair Stations . | . . . . Recycling Units . | . . . . Scanalyzers . | . . . . Garrison Access . | . . . . Total Hacks 7 | . 6 . 1 Successful 3 | . 3 . . Failed 4 | . 3 . 1 Catastrophic 1 | . . . 1 Database Lockouts . | . . . . Manual 7 | . 6 . 1 Terminals 7 | . 6 . 1 Fabricators . | . . . . Repair Stations . | . . . . Recycling Units . | . . . . Scanalyzers . | . . . . Garrison Access . | . . . . Terminal Hacks 1 | . 1 . . Terminal Index 1 | . 1 . . Fabricator Hacks . | . . . . Repair Station Hacks . | . . . . Recycling Unit Hacks . | . . . . Scanalyzer . | . . . . Garrison Access Hacks . | . . . . Unauthorized Hacks 2 | . 2 . . Terminals 2 | . 2 . . Botnet 2 | . 2 . . Fabricators . | . . . . Repair Stations . | . . . . Recycling Units . | . . . . Scanalyzers . | . . . . Garrison Access . | . . . . Data Cores Recovered . | . . . . Used . | . . . . Hacking Detections 3 | . 2 . 1 Full Trace Events . | . . . . Feedback Events . | . . . . Feedback Blocked . | . . . . Robot Schematics Acquired . | . . . . Robots Built . | . . . . Authchips . | . . . . Time . | . . . . Total Robot Build Rating . | . . . . Part Schematics Acquired . | . . . . Parts Built . | . . . . Authchips . | . . . . Time . | . . . . Total Part Build Rating . | . . . . Parts Repaired . | . . . . Time . | . . . . Parts Recycled . | . . . . Recycled Matter . | . . . . Retrieved Matter . | . . . . Retrieved Components . | . . . . Parts Scanalyzed . | . . . . Part Schematics Acquired . | . . . . Parts Damaged . | . . . . Bothacking | -11 -10 -10 -9 ------------ Run | Scr Mat Min Mat Used RIF Installer . | . . . . Robots Hacked . | . . . . Non-combat . | . . . . Combat . | . . . . Robot Hacks Applied . | . . . . Relay Couplers Released . | . . . . Fabnet Peak Effective % . | . . . . Robots Rewired . | . . . . Allies Hacked . | . . . . Hacks Repelled . | . . . . Allies | -11 -10 -10 -9 -------- Run | Scr Mat Min Mat Total Allies . | . . . . Largest Group . | . . . . Highest-Rated Group . | . . . . Highest-Rated Ally . | . . . . Total Orders . | . . . . Ally Attacks . | . . . . Total Damage . | . . . . Kills . | . . . . Allies Corrupted . | . . . . Allies Melted . | . . . . Intel | -11 -10 -10 -9 ------- Run | Scr Mat Min Mat Robot Analysis Total . | . . . . Derelict Logs Recovered . | . . . . Drone Launches . | . . . . Drone Recoveries . | . . . . Exploration | -11 -10 -10 -9 ------------- Run | Scr Mat Min Mat Turns Passed 146 | 3 48 6 89 Spaces Moved 227 | 1 93 12 121 Core 208 | 1 93 12 102 Treads . | . . . . Legs . | . . . . Wheels . | . . . . Hover . | . . . . Flight 19 | . . . 19 Fastest Speed 40 | 50 50 50 40 Average Speed 51 | 50 50 50 52 Slowest Speed 100 | 50 50 50 100 Overloaded Moves . | . . . . Propulsion Burnouts . | . . . . Robots Hopped . | . . . . Cave-ins Triggered . | . . . . Exploration Rate (%) 14 | 2 26 7 21 Regions Visited 3 Branch Regions 1 Pre-discovered Areas . | . . . . Known Exits Taken . | . . . . Unknown Exits Taken 3 | 1 1 1 . Scrap Searched . | . . . . Spaces Dug . | . . . . Terrain Destroyed 54 | . . . 54 Melee . | . . . . Projectile . | . . . . AOE 54 | . . . 54 Terrain Rammed . | . . . . Walls Destroyed . | . . . . Machines Disabled . | . . . . Actions | -11 -10 -10 -9 --------- Run | Scr Mat Min Mat Total 245 | 5 93 11 136 Wait . | . . . . Move 224 | . 92 11 121 Hop . | . . . . Pick Up 4 | . 1 . 3 Fast Attach 3 | . . . 3 Attach 1 | . . . 1 Detach . | . . . . Swap . | . . . . Drop 5 | 5 . . . Fire 8 | . . . 8 Melee . | . . . . Ram . | . . . . Kick . | . . . . Crush . | . . . . Escape Stasis . | . . . . Rewire . | . . . . Trap . | . . . . Miscellaneous . | . . . . Route ------- -11/Scrapyard -10/Materials -10/Mines -9/Materials History --------- Turn | Location | Event 1 | -11/Scrapyard | Released all parts (6) 4 | -11/Scrapyard | Discovered new exit (range 0) 4 | -11/Scrapyard | Entered Materials 27 | -10/Materials | Discovered new exit (range 8) 52 | -10/Materials | Entered Mines 52 | -10/Mines | Discovered new exit (range 11) 58 | -10/Mines | Entered Materials 58 | -9/Materials | Evolved 2 slots: Propulsion x2 147 | -9/Materials | Self-destructed Last Messages --------------- 00122_ K-01 Serf collects debris. 00122_ Acquired Lgt. Ion Engine. 00122_ C-30 ARC bursts open, deploying its payload. 00122_ S-10 Pest unfolds itself. 00124_ S-10 Pest destroyed. 00126_ U-05 Engineer lays Concrete. 00126_ S-10 Pest destroyed. 00127_ The unstable cave ceiling collapses. 00127_ U-05 Engineer builds a Wall. 00128_ S-10 Pest destroyed. 00131_ The unstable cave ceiling collapses. 00131_ U-05 Engineer builds a Wall. 00132_ Acquired 76 matter. 00134_ Connecting with Terminal... 00134_ Current location identified: Materials 00134_ Rocket Launcher destroyed. 00136_ The unstable cave ceiling collapses. 00136_ Flight Unit destroyed. 00139_ ALERT: Hostiles spotted, dispatching reinforcements to Terminal M004. Map ----- +----------------------------------------------------+ | ?????????# ????????????# ? | | ?????????# ????????????# ? | | ????????## #???????????# #?? | | ????????# ! #######+#### #?? | | ????????# #?? | | ????????# ### | | ????????? """ === ? | | ??????????? """ === ##?? | | ??????????#### """ === #?? | | ????# ##### #?? | | ????# !! ##?? | | ?########?# ! [ ###+ | | # ?# ######## # # | | # # # T # ] " | | # ** # + # """ # T | | # / *] + # """ # """ # " | | # # # """ # """ # | | # [ ## ## """ # | | # ??# #? """ # """ ] [ | | # ??# #? """ # """ # | | ?#######???# #? # """ ## | | ???????????# #?? # ## | | ???????????# #?? !|###### | | ???????????# #?? ! ?????# | | ???????????# #?? #####?????## | | ???????????#@#??????????????#### # | | ???????#####/#####?????????????# #### | | ???????# #?????????????# #??? | | ???????# o #?????????????# #??? | | ???????# "T" #?????????????# #??? | | ???????# #?????????????# #??? | | ???????###########?????????????# #??? | | ???????????????????????????????# #??? | | ???????????????????????????????# #??? | | ???????????????????????????????# #??? | | ???????????????????????????????# #??? | | ???????????????????????????????# #??? | | ???????????????????????????????# #??? | | ???????????????????????????????# #??? | | ???????????????????????????????# #??? | | ????????????????###+###????????# #??? | | ????????????????# #????????# #??? | | ???????????????? #????????# #??? | | ????????????????? ?????????# #??? | | ????????????????? ?????????# #??? | | ????????????????? ?????????# #??? | | ?????????????????# #?????????# #??? | | ?????????????????# #???####### #??? | | ?????????????????# #???# #??? | | ?????????????????# #???# ####??? | +----------------------------------------------------+ Best States ------------- Heat Dissipation 28 Energy Generation 10 Energy Capacity 125 Matter Stores 300 Matter Capacity 300 Sight Range 16 Terrain Scan Density 10 Additional Mass Support 6 Evasion (%) 50 Item Schematics ----------------- None Robot Schematics ------------------ None Fabricated ------------ Nothing Alien Tech Used ----------------- None Achievements -------------- None Challenges ------------ None Game ------ Seed SubatomicNetworkPerforator Manual? 0 Play Time 00:04:27 Cumulative 248.8 hours Start 2022.05.12 @ 18:45:48 End 2022.05.12 @ 18:48:43 Sessions 1 Manual Loads 0 Difficulty Rogue Special Mode None Game No. 347 Rogue 344 Adventurer 0 Explorer 3 Win Type - Total 8 Types 8/0/0/0/0/0/0/0/0 Lore% 71 Gallery% 75 Achievement% 62 Wizard Run 0 Options --------- ASCII 1 Keyboard 1 Movement Vi Keybinds 0 Fullscreen 1 Font 18/SmallcapsGlow Map View 76x50 Tactical HUD 1 Map Filters NONE Filters NONE Steam 1 RUN: 8633b9f0-71d8-427d-b166-d0c0538aed64